fUSD/lending_fUSD_20240404
["ID","MTS","AMOUNT","RATE_DAILY","PERIOD"]
[321508406,1712262633042,-160.12174634,0.0003798,2]
[321508407,1712262633053,-160.12174634,0.0003799,2]
[321508408,1712262633063,-160.12174634,0.0003799,2]
[321508409,1712262633073,-160.12174634,0.0003799,2]
[321508410,1712262633083,-160.12174634,0.0003799,2]
[321508411,1712262633094,-160.12174634,0.0003799,2]
[321508412,1712262633103,-160.12174634,0.0003799,2]
[321508413,1712262633113,-160.12174634,0.0003799,2]
[321508414,1712262633123,-160.12174634,0.0003799,2]
[321508415,1712262633133,-160.12174634,0.0003799,2]
[321508416,1712262633143,-14002.20971284,0.00038,3]
[321508417,1712262633154,-173.0,0.00038,2]
[321508418,1712262633163,-160.12174634,0.00038017,2]
[321508419,1712262633173,-160.12174634,0.00038017,2]
[321508420,1712262633182,-2759.07,0.00038027,15]
[321508421,1712262633192,-530.29247699,0.00038233,2]
[321508422,1712262633202,-160.12174634,0.00038263,2]
[321508423,1712262633212,-1000.0,0.00038273,2]
[321508424,1712262633223,-500.0,0.00038356,2]
[321508425,1712262633232,-160.12174634,0.00038425,2]
[321508426,1712262633245,-655.5,0.00038435,2]
[321508427,1712262633255,-530.29247699,0.00038567,2]
[321508428,1712262633265,-2503.6312,0.000387,120]
[321508429,1712262633276,-654.23372226,0.00038704,11]
[321508430,1712262633286,-322.83736576,0.00038704,2]
[321508431,1712262633296,-152.0,0.00038716,3]
[321508432,1712262633305,-160.12174634,0.00038777,2]
[321508433,1712262633315,-160.12174634,0.00038787,2]
[321508434,1712262633325,-160.12174634,0.00038787,2]
[321508435,1712262633336,-160.12174634,0.00038787,2]
[321508436,1712262633347,-160.12174634,0.00038787,2]
[321508437,1712262633359,-160.12174634,0.00038787,2]
[321508438,1712262633370,-160.12174634,0.00038787,2]
[321508439,1712262633381,-160.12174634,0.00038787,2]
[321508440,1712262633392,-160.12174634,0.00038787,2]
[321508441,1712262633402,-160.12174634,0.00038787,2]
[321508442,1712262633412,-160.12174634,0.00038787,2]
[321508443,1712262633423,-160.12174634,0.0003879,2]
[321508444,1712262633437,-160.12174634,0.0003879,2]
[321508445,1712262633448,-160.12174634,0.0003879,2]
[321508446,1712262633459,-160.12174634,0.0003879,2]
[321508447,1712262633470,-160.12174634,0.0003879,2]
[321508448,1712262633481,-160.12174634,0.0003879,2]
[321508449,1712262633491,-160.12174634,0.0003879,2]
[321508450,1712262633505,-160.12174634,0.0003879,2]
[321508451,1712262633516,-160.12174634,0.0003879,2]
[321508452,1712262633527,-160.12174634,0.0003879,2]
[321508453,1712262633538,-160.12174634,0.0003879,2]
[321508454,1712262633549,-160.12174634,0.0003879,2]
[321508455,1712262633560,-160.12174634,0.0003879,2]
[321508456,1712262633572,-160.12174634,0.0003879,2]
[321508457,1712262633584,-160.12174634,0.0003879,2]
[321508458,1712262633596,-160.12174634,0.0003879,2]
[321508459,1712262633607,-160.12174634,0.0003879,2]
[321508460,1712262633617,-160.12174634,0.0003879,2]
[321508461,1712262633628,-160.12174634,0.0003879,2]
[321508462,1712262633637,-160.12174634,0.0003879,2]
[321508463,1712262633647,-27334.85409465,0.00038797,2]
[321508464,1712262633660,-3382.55,0.00038797,2]
[321508479,1712262638383,-329.94000001,0.00038704,9]
[321508480,1712262638486,-474.27591376,0.00038704,9]
[321508481,1712262638497,-7500.0,0.00038704,2]
[321508482,1712262638509,-160.12174634,0.0003879,2]
[321508483,1712262638519,-160.12174634,0.0003879,2]
[321508484,1712262638528,-160.12174634,0.0003879,2]
[321508485,1712262638538,-160.12174634,0.0003879,2]
[321508486,1712262638547,-160.12174634,0.0003879,2]
[321508487,1712262638557,-160.12174634,0.0003879,2]
[321508488,1712262638566,-160.12174634,0.0003879,2]
[321508489,1712262638575,-160.12174634,0.0003879,2]
[321508490,1712262638585,-160.12174634,0.0003879,2]
[321508491,1712262638595,-160.12174634,0.0003879,2]
[321508492,1712262638604,-160.12174634,0.0003879,2]
[321508493,1712262638613,-160.12174634,0.0003879,2]
[321508494,1712262638623,-160.12174634,0.0003879,2]
[321508495,1712262638633,-160.12174634,0.0003879,2]
[321508496,1712262638642,-160.12174634,0.0003879,2]
[321508497,1712262638652,-160.12174634,0.0003879,2]
[321508498,1712262638661,-160.12174634,0.0003879,2]
[321508500,1712262638670,-160.12174634,0.0003879,2]
[321508502,1712262638679,-160.12174634,0.0003879,2]
[321508504,1712262638688,-160.12174634,0.0003879,2]
[321508506,1712262638697,-160.12174634,0.0003879,2]
[321508508,1712262638706,-160.12174634,0.0003879,2]
[321508510,1712262638715,-1263.8129781,0.00038797,2]
[321508512,1712262638725,-66775.2114324,0.00038797,2]
[321508522,1712262638905,-160.12174634,0.0003879,2]
[321508523,1712262638914,-180939.2318026,0.00038797,2]
[321508524,1712262638936,-6905.55575,0.00038797,2]
[321508525,1712262638947,-2935.0613165,0.00038797,2]
[321508538,1712262642552,-160.12174634,0.0003879,2]
[321508539,1712262642561,-160.12174634,0.0003879,2]
[321508540,1712262642570,-160.12174634,0.0003879,2]
[321508541,1712262642579,-160.12174634,0.0003879,2]
[321508542,1712262642588,-160.12174634,0.0003879,2]
[321508543,1712262642597,-160.12174634,0.0003879,2]
[321508544,1712262642605,-160.12174634,0.0003879,2]
[321508545,1712262642615,-408.57290395,0.00038796,4]
[321508546,1712262642624,-415.65709799,0.00038797,2]
[321508547,1712262642744,-765.39851404,0.00038797,2]
[321508548,1712262642760,-1034.32468366,0.00038797,2]
[321508549,1712262642771,-546.59726667,0.00038797,2]
[321508550,1712262642811,-9587.0,0.00038797,2]
[321508551,1712262642822,-6778.93700001,0.00038797,2]
[321508552,1712262642882,-129276.7389701,0.00038797,2]
[321508553,1712262642893,-678.07737716,0.00038797,2]
[321508578,1712262643206,-160357.83882543,0.00038797,2]
[321508579,1712262643218,-2560.98779498,0.00038797,2]
[321508580,1712262643365,-633.68000004,0.00038797,2]
[321508581,1712262643488,-2024.065692,0.00038797,2]
[321508582,1712262643554,-101463.39952404,0.00038797,2]
[321508583,1712262643566,-6744.4,0.00038797,2]
[321508584,1712262643626,-3967.51011226,0.00038797,2]
[321508585,1712262643637,-2938.54247877,0.00038797,2]
[321508586,1712262643648,-3228.59715858,0.00038797,2]
[321508587,1712262643659,-553.26953862,0.00038797,2]
[321508588,1712262643670,-3290.09996662,0.00038797,2]
[321508589,1712262643681,-5894.73885,0.00038797,2]
[321508612,1712262647867,-174.0,0.00038,2]
[321508613,1712262647877,-569.14739709,0.00038796,2]
[321508614,1712262647889,-2637.13336375,0.00038796,2]
[321508615,1712262647899,-537.99127006,0.00038797,2]
[321508616,1712262647912,-1799.22360199,0.00038797,2]
[321508617,1712262647924,-4083.19524299,0.00038797,2]
[321508618,1712262647951,-2220.933,0.00038797,2]
[321508619,1712262647968,-6605.33756702,0.00038797,2]
[321508620,1712262648030,-497.56889508,0.00038797,2]
[321508621,1712262648053,-272.24998237,0.00038797,2]
[321508632,1712263138152,155.10207977,0.00031111,120]
[321508633,1712263653128,-151.81814755,0.00029896,2]
[321508634,1712263653150,-163.25527113,0.00029899,2]
[321508635,1712263653172,-150.0,0.00029996,2]
[321508636,1712263653195,-150.0,0.00029996,2]
[321508637,1712263653217,-4568.12840899,0.00029996,2]
[321508638,1712263653240,-4477.9357811,0.00029997,2]
[321508639,1712263653263,-163.92691314,0.00029997,2]
[321508640,1712263653286,-500.0,0.00029997,2]
[321508641,1712263653311,-3206.28076084,0.0003,2]
[321508642,1712263653335,-295.82660405,0.00031111,2]
[321508643,1712263653356,-1131.74605712,0.00031111,4]
[321508644,1712263653378,-1485.08416533,0.00031111,4]
[321508645,1712263653400,-623.73274652,0.00031111,4]
[321508646,1712263653422,-483.92917653,0.00031111,2]
[321508647,1712263653444,-156.25,0.00032877,2]
[321508648,1712263653466,-156.25,0.00032877,2]
[321508649,1712263653488,-163.25527113,0.00034298,2]
[321508650,1712263653510,-195.2942974,0.00034916,4]
[321508651,1712263653533,-557.17,0.0003509,2]
[321508652,1712263653557,-1208.79,0.0003613,2]
[321508653,1712263653581,-250.0,0.00036146,2]
[321508654,1712263653604,-250.0,0.00036176,115]
[321508655,1712263653626,-1000.0,0.00036507,2]
[321508656,1712263653651,-180.41,0.00036558,120]
[321508657,1712263653673,-800.0,0.00036704,10]
[321508658,1712263653694,-152.27,0.00036772,2]
[321508659,1712263653716,-200.0,0.00036957,2]
[321508660,1712263653738,-192.80486273,0.00037,2]
[321508661,1712263653758,-257.7250683,0.00037,2]
[321508662,1712263653779,-14977.91703644,0.00037,2]
[321508663,1712263653800,-155.0,0.00037021,4]
[321508664,1712263653824,-23900.0,0.00037022,2]
[321508665,1712263653847,-1002.68,0.00037035,2]
[321508666,1712263653867,-690.57,0.00037046,2]
[321508667,1712263653888,-500.0,0.00037144,10]
[321508668,1712263653910,-557.17,0.00037354,2]
[321508669,1712263653931,-200.0,0.00037365,10]
[321508670,1712263653951,-800.0,0.00037365,10]
[321508671,1712263653972,-1000.0,0.000375,2]
[321508672,1712263653992,-500.0,0.00037585,10]
[321508673,1712263654014,-748.00218867,0.00037821,8]
[321508674,1712263654034,-334.00410592,0.00037821,2]
[321508675,1712263654055,-748.61099202,0.00037821,2]
[321508676,1712263654077,-7027.38869924,0.00037877,2]
[321508677,1712263654098,-876.74583347,0.00037878,4]
[321508678,1712263654119,-217.21003953,0.00037879,4]
[321508679,1712263654141,-38433.62525449,0.00037879,4]
[321508680,1712263654162,-40740.85718821,0.0003788,2]
[321508709,1712263831451,-156.1924144,0.00031111,2]
[321508712,1712263831461,-209.85369533,0.00031111,4]
[321508714,1712263831471,-357.42367777,0.00031111,2]
[321508716,1712263831481,-501.81720493,0.00031111,4]
[321508718,1712263831491,-163.25527113,0.00035573,2]
[321508719,1712263831501,-3206.28076084,0.00035672,2]
[321508721,1712263831511,-572.83,0.00035673,2]
[321508723,1712263831521,-163.25527113,0.00035818,2]
[321508725,1712263831531,-163.25527113,0.00036063,2]
[321508727,1712263831541,-163.25527113,0.00036309,2]
[321508729,1712263831550,-163.25527113,0.00036554,2]
[321508731,1712263831559,-163.25527113,0.00036799,2]
[321508733,1712263831569,-23900.0,0.00036888,2]
[321508735,1712263831579,-163.25527113,0.00037044,2]
[321508737,1712263831588,-163.25527113,0.0003729,2]
[321508739,1712263831598,-163.25527113,0.00037535,2]
[321508741,1712263831608,-151.61319479,0.000376,2]
[321508743,1712263831617,-321.92918717,0.0003778,2]
[321508745,1712263831626,-654.50191513,0.0003778,8]
[321508746,1712263831637,-163.25527113,0.0003778,2]
[321508748,1712263831646,-1664.75819841,0.00037821,2]
[321508750,1712263831657,-211795.93935517,0.00037868,2]
[321508753,1712263831669,-25699.55476826,0.00037868,2]
[321508755,1712263831681,-1188.16700002,0.00037868,2]
[321508757,1712263831693,-8982.82997581,0.00037868,2]
[321508759,1712263831707,-11466.80667981,0.00037868,2]
[321508761,1712263831718,-1410.2626,0.00037868,2]
[321508763,1712263831748,-97607.49981351,0.00037868,2]
[321508764,1712263831761,-2386.14102656,0.00037868,2]
[321508765,1712263831797,-679.31,0.00037868,2]
[321508766,1712263831814,-159422.42318775,0.00037868,2]
[321508767,1712263831883,-572.92685355,0.00037868,2]
[321508768,1712263831894,-271.2999999,0.00037868,2]
[321508769,1712263831906,-835.21364132,0.00037868,2]
[321508770,1712263831920,-660.78,0.00037868,2]
[321508778,1712263837474,-86563.5369006,0.00037868,2]
[321508779,1712263837486,-6584.60579918,0.00037868,2]
[321508780,1712263837497,-2942.39999902,0.00037868,2]
[321508781,1712263837509,-680.36124595,0.00037868,2]
[321508808,1712263838069,-9224.1643875,0.00037868,2]
[321508812,1712263838099,-661.13,0.00037868,2]
[321508816,1712263838129,-3584.56823158,0.00037868,2]
[321508819,1712263838140,-9903.5888,0.00037868,2]
[321508823,1712263838171,-11827.7989975,0.00037868,2]
[321508865,1712263839627,-5525.21646116,0.00037868,2]
[321508866,1712263839646,-3637.68748569,0.00037868,2]
[321508867,1712263839658,-4698.59378624,0.00037868,2]
[321508868,1712263839669,-910.04499997,0.00037868,2]
[321508869,1712263839681,-568.34681488,0.00037868,2]
[321508881,1712263842579,-366.448039,0.00037868,2]
[321508882,1712263842590,-1198.6991523,0.00037868,2]
[321508883,1712263842601,-2162.12264395,0.00037868,2]
[321508884,1712263842613,-7624.23210759,0.00037868,2]
[321508885,1712263842652,-6795.78024261,0.00037868,2]
[321508886,1712263842662,-2384.07162564,0.00037868,2]
[321508887,1712263842673,-30062.988,0.00037868,2]
[321508888,1712263842696,-85241.73047055,0.00037868,2]
[321508889,1712263842707,-3015.68325249,0.00037868,2]
[321508890,1712263842719,-1343.63063402,0.00037868,2]
[321508891,1712263842730,-4850.2986458,0.00037868,2]
[321508892,1712263842741,-18173.09574964,0.00037868,2]
[321508893,1712263842812,-636.58999992,0.00037868,2]
[321508894,1712263842824,-557.67678,0.00037868,2]
[321508904,1712263847105,-554.6523772,0.00037867,15]
[321508905,1712263847115,-29607.60809661,0.00037868,2]
[321508906,1712263847169,-68197.25000003,0.00037868,2]
[321508907,1712263847184,-271.21940429,0.00037868,2]
[321508908,1712263847202,-659.13918387,0.00037868,2]
[321508909,1712263847271,-22295.01140769,0.00037868,2]
[321508930,1712263946467,297.12914278,0.000285,120]
[321508932,1712264131827,502.03464058,0.00021375,2]
[321508933,1712264184642,287.28645962,0.00021375,2]
[321508934,1712264187448,921928.71652896,0.00021375,2]
[321508935,1712264194458,283.41297894,0.00021375,2]
[321508936,1712264196544,1033.25388756,0.00021375,2]
[321508937,1712264205445,602214.02725618,0.00021375,2]
[321508938,1712264211014,526.30452323,0.00021375,2]
[321508939,1712264249828,165.68386379,0.00021268,15]
[321508940,1712264493549,300.96821831,0.00024898,30]
[321508941,1712264511505,165.42697761,0.00021268,2]
[321508942,1712264595014,-451.1818864,0.00023404,2]
[321508943,1712264595040,-178.41151227,0.00023578,2]
[321508944,1712264595066,-3933.34687148,0.00023678,2]
[321508945,1712264595100,-157.00613791,0.00024898,2]
[321508946,1712264595125,-218.05642744,0.00024898,2]
[321508947,1712264595151,-492.50325519,0.00024898,2]
[321508948,1712264595176,-261.40204284,0.00024898,2]
[321508949,1712264595208,-1711.4265137,0.00024899,2]
[321508950,1712264595237,-152.65762477,0.000249,2]
[321508951,1712264595263,-362.16302404,0.000249,2]
[321508952,1712264595290,-43955.7389,0.000249,2]
[321508953,1712264595316,-13995.55322474,0.000249,2]
[321508954,1712264595346,-818.57851731,0.000249,2]
[321508955,1712264595372,-100000.0,0.000249,2]
[321508956,1712264595399,-7500.0,0.000249,2]
[321508957,1712264595424,-160.3422434,0.000249,2]
[321508958,1712264595449,-193.14681631,0.000249,4]
[321508959,1712264595473,-303.513562,0.000249,2]
[321508960,1712264595498,-157.15500887,0.000249,2]
[321508961,1712264595523,-358.2031624,0.000249,9]
[321508962,1712264595550,-1083.42655578,0.000249,2]
[321508963,1712264595575,-327.81528345,0.000249,2]
[321508964,1712264595604,-3216.8636548,0.000249,2]
[321508965,1712264595629,-163.05,0.0002499,2]
[321508966,1712264595655,-163.05,0.0002499,2]
[321508967,1712264595681,-163.05,0.0002499,2]
[321508968,1712264595708,-163.05,0.0002499,2]
[321508969,1712264595733,-163.05,0.0002499,2]
[321508970,1712264595758,-163.05,0.0002499,2]
[321508971,1712264595783,-181.68754615,0.0002499,2]
[321508972,1712264595810,-181.68754615,0.0002499,2]
[321508973,1712264595839,-181.68754615,0.0002499,2]
[321508974,1712264595865,-408.57290395,0.00024999,2]
[321508975,1712264595892,-686079.5722325,0.00025,2]
[321508977,1712264993672,1000.0,0.000271,20]
[321508990,1712265032064,-679.84698,0.00024788,2]
[321508991,1712265032081,-2.05695791,0.00024788,2]
[321508992,1712265032090,-262.90696372,0.00024788,2]
[321508993,1712265032099,-1943.14607837,0.00024789,2]
[321508994,1712265032137,-581.2431773,0.00024789,2]
[321508995,1712265032198,-2043.73915332,0.00024789,2]
[321508996,1712265032210,-1000.0,0.0002479,2]
[321508997,1712265032223,-160.5906488,0.00024794,2]
[321508998,1712265032235,-1702.58135829,0.00024799,2]
[321508999,1712265032245,-251.19685511,0.00024898,2]
[321509000,1712265032254,-1110.14421748,0.00024898,2]
[321509001,1712265032263,-206.93248192,0.00024898,2]
[321509002,1712265032273,-479.57602634,0.00024898,2]
[321509003,1712265032283,-155.59271232,0.00024898,2]
[321509004,1712265032294,-185.5962103,0.00024898,2]
[321509005,1712265032304,-309.20538698,0.00024898,2]
[321509006,1712265032315,-376.6233637,0.00024898,2]
[321509007,1712265032326,-20255.65590954,0.00024898,2]
[321509008,1712265032338,-661.68277074,0.00024898,2]
[321509009,1712265032351,-138619.18131973,0.00024898,2]
[321509010,1712265032361,-4186.20750815,0.00024899,2]
[321509011,1712265032372,-813.33995534,0.00024899,2]
[321509012,1712265032381,-152.58408804,0.000249,2]
[321509013,1712265032393,-7500.0,0.000249,2]
[321509014,1712265032403,-82999.3908,0.000249,2]
[321509015,1712265032414,-324.82853286,0.000249,2]
[321509016,1712265032424,-4581.51340556,0.000249,2]
[321509017,1712265032435,-216.64242715,0.00024998,2]
[321509018,1712265032444,-482475.0631665,0.00025,2]
[321509019,1712265032467,-1407.45269628,0.00025,2]
[321509020,1712265032482,-407.8655,0.00025,2]
[321509021,1712265032498,-2079.35349562,0.00025,2]
[321509045,1712265037615,-25531.40114476,0.00025,2]
[321509047,1712265037627,-8917965.12714736,0.00025,2]
[321509049,1712265037637,-1800222.51296874,0.00025,2]
[321509055,1712265037687,-549.88890872,0.00025,2]
[321509058,1712265037700,-1052.21775098,0.00025,2]
[321509063,1712265037747,-6002.59202,0.00025,2]
[321509070,1712265037808,-171396.9225557,0.00025,2]
[321509072,1712265037819,-305.40389219,0.00025,2]
[321509073,1712265037874,-135532.86441075,0.00025,2]
[321509078,1712265039694,-2566.81017405,0.00024788,2]
[321509079,1712265040060,-1666.18287784,0.00024788,2]
[321509080,1712265040071,-1358.11640252,0.00024788,2]
[321509081,1712265040083,-52.22522458,0.00024788,2]
[321509082,1712265040093,-1064.09656864,0.00025,2]
[321509083,1712265040151,-412.20779145,0.00025,2]
[321509084,1712265040162,-294.723,0.00025,2]
[321509085,1712265040173,-116575.80551954,0.00025,2]
[321509086,1712265040193,-3273.30000001,0.00025,2]
[321509087,1712265041265,-388.4729806,0.00025,2]
[321509095,1712265042647,-4558.455215,0.00025,2]
[321509096,1712265042659,-678.99,0.00025,2]
[321509099,1712265043166,-248462.89877234,0.00025,2]
[321509100,1712265043186,-10565.4906,0.00025,2]
[321509101,1712265043197,-356.59842225,0.00025,2]
[321509102,1712265043220,-5993.08600152,0.00025,2]
[321509103,1712265043237,-12054.36105,0.00025,2]
[321509104,1712265043248,-126146.44290909,0.00025,2]
[321509105,1712265045657,-2033.40631865,0.00024999,2]
[321509106,1712265045666,-761.52418506,0.00024999,2]
[321509107,1712265045675,-3057.38241266,0.00025,2]
[321509108,1712265045718,-13303.6,0.00025,2]
[321509109,1712265045730,-3188.74581284,0.00025,2]
[321509110,1712265045743,-1392.99995,0.00025,2]
[321509111,1712265045833,-435689.62449173,0.00025,2]
[321509112,1712265045844,-611657.61996567,0.00025,2]
[321509113,1712265045854,-219.9598859,0.00025,2]
[321509114,1712265045864,-806.36,0.00025,2]
[321509115,1712265045875,-956.6,0.00025,2]
[321509116,1712265045884,-715.01,0.00025,2]
[321509117,1712265045893,-1131.15465862,0.00025,2]
[321509118,1712265045902,-20100.79242508,0.00025,2]
[321509119,1712265045911,-155.0,0.00025,2]
[321509120,1712265045921,-863.11991372,0.00025,2]
[321509121,1712265045931,-179.03632854,0.00025,2]
[321509122,1712265045941,-83153.58563992,0.00025,2]
[321509123,1712265045950,-9393.00823716,0.00025,2]
[321509124,1712265045960,-593.86,0.00026168,2]
[321509125,1712265045969,-13995.55322474,0.00026224,2]
[321509126,1712265045979,-1702.58135827,0.00026241,2]
[321509127,1712265045989,-152.58408804,0.00026355,2]
[321509128,1712265045998,-18928.26508871,0.000271,2]
[321509131,1712265153936,1000.0,0.000276,30]
[321509132,1712265190756,1000.0,0.000271,30]
[321509133,1712265225388,1000.0,0.0002777,20]
[321509134,1712265513658,2000.0,0.0002777,20]
[321509135,1712265587345,-2000.0,0.00024693,2]
[321509136,1712265587372,-7500.0,0.000249,2]
[321509137,1712265587399,-160.93111356,0.00024999,2]
[321509138,1712265587427,-172.4895143,0.00024999,2]
[321509139,1712265646327,679.98,0.00023389,2]
[321509140,1712265699910,1467.0,0.0002777,20]
[321509143,1712266025170,-389.66010723,0.00025204,2]
[321509144,1712266025191,-564.16,0.00025632,2]
[321509145,1712266025212,-150.0,0.00026613,2]
[321509146,1712266025232,-150.0,0.00026798,2]
[321509147,1712266025252,-9707.75755006,0.00026799,2]
[321509148,1712266025271,-332.05147299,0.000268,2]
[321509149,1712266025293,-250.0,0.00026924,2]
[321509150,1712266025313,-18363.0,0.00027,2]
[321509151,1712266025332,-172.60401175,0.000271,2]
[321509152,1712266025351,-1071.04239827,0.000271,2]
[321509153,1712266025371,-3000.0,0.000271,2]
[321509154,1712266025390,-254.28923812,0.00027121,2]
[321509155,1712266025409,-425.50779126,0.00027381,2]
[321509156,1712266025428,-223.0269415,0.00027395,2]
[321509157,1712266025450,-230.27070736,0.00027395,2]
[321509158,1712266025469,-203.8393956,0.00027395,2]
[321509159,1712266025490,-204.18286789,0.00027395,2]
[321509160,1712266025509,-619.85903412,0.00027395,2]
[321509161,1712266025531,-669.53140099,0.00027395,2]
[321509162,1712266025552,-717.73481739,0.00027395,2]
[321509163,1712266025574,-265.26654513,0.00027396,2]
[321509164,1712266025595,-200.0,0.00027458,2]
[321509165,1712266025613,-500.0,0.00027536,2]
[321509166,1712266025634,-2771.46205764,0.00027571,2]
[321509167,1712266025939,-7846.67373983,0.000276,2]
[321509168,1712266030092,-16453.79363996,0.000276,2]
[321509169,1712266030110,-180.887195,0.00027671,14]
[321509170,1712266030129,-2000.0,0.0002777,2]
[321509171,1712266030147,-200.0,0.0002777,2]
[321509172,1712266030166,-11309.21,0.00027812,2]
[321509173,1712266030186,-564.16,0.00027895,2]
[321509174,1712266030205,-200.0,0.00027949,2]
[321509175,1712266030222,-3828.40574493,0.00028,10]
[321509176,1712266030240,-251.16788447,0.00028048,2]
[321509177,1712266030260,-200.0,0.00028048,2]
[321509178,1712266030281,-500.0,0.00028082,2]
[321509179,1712266030301,-190.54355743,0.00028328,2]
[321509180,1712266031930,-9.45644257,0.00028328,2]
[321509181,1712266031950,-180.887195,0.00028493,14]
[321509182,1712266031972,-1365.83579776,0.000285,2]
[321509183,1712266031991,-200.0,0.00028611,2]
[321509184,1712266032011,-23900.0,0.00028861,2]
[321509185,1712266032030,-200.0,0.00028898,2]
[321509186,1712266032051,-2771.46205757,0.00029052,2]
[321509187,1712266032071,-180.887195,0.00029315,14]
[321509188,1712266032091,-3206.28076084,0.0003,2]
[321509189,1712266032110,-231.68827047,0.0003,2]
[321509190,1712266032130,-1000.0,0.0003,30]
[321509191,1712266032151,-1600.45488383,0.0003,4]
[321509192,1712266032171,-26074.67748263,0.0003,4]
[321509193,1712266032191,-180.887195,0.00030137,14]
[321509194,1712266032214,-564.16,0.00030159,2]
[321509195,1712266032234,-893.02480988,0.00030533,2]
[321509196,1712266036098,-1878.43724769,0.00030533,2]
[321509197,1712266036119,-800.0,0.00030615,2]
[321509198,1712266036140,-200.0,0.0003089,2]
[321509199,1712266036162,-180.887195,0.00030959,14]
[321509200,1712266036184,-416.67997027,0.000314,2]
[321509201,1712266150231,-609.00404179,0.0002777,2]
[321509202,1712266150252,-500.0,0.00027859,2]
[321509203,1712266150275,-337.1,0.00031069,2]
[321509204,1712266150299,-3206.28076084,0.00031308,2]
[321509205,1712266150323,-66.32002973,0.000314,2]
[321509206,1712266150346,-600.0,0.000314,4]
[321509207,1712266150370,-5413.24108653,0.000314,4]
[321509208,1712266150392,-1609.52739,0.000314,2]
[321509209,1712266150412,-1236.8293874,0.000314,4]
[321509210,1712266150437,-1391.92575913,0.00031574,2]
[321509211,1712266150460,-180.887195,0.00031781,14]
[321509212,1712266150481,-331.73521384,0.00032,4]
[321509213,1712266150507,-180.41,0.00032043,120]
[321509214,1712266150527,-166.96,0.00032352,2]
[321509215,1712266150549,-564.16,0.00032423,2]
[321509216,1712266150570,-180.887195,0.00032603,14]
[321509217,1712266150592,-1094.31,0.00032603,2]
[321509218,1712266150613,-1007.32,0.00032603,2]
[321509219,1712266150637,-151.0,0.00032709,30]
[321509220,1712266150656,-166.96,0.00032818,2]
[321509221,1712266150679,-156.25,0.00032877,2]
[321509222,1712266150700,-156.25,0.00032877,2]
[321509223,1712266150720,-156.25,0.00032877,2]
[321509224,1712266150742,-156.25,0.00032877,2]
[321509225,1712266150764,-4625.53,0.00032958,3]
[321509226,1712266150784,-1618.79494074,0.00032958,3]
[321509227,1712266152162,-3006.73505926,0.00032958,3]
[321509228,1712266152184,-4625.53,0.00032958,3]
[321509229,1712266152206,-4625.53,0.00032958,3]
[321509230,1712266152228,-4625.53,0.00032958,3]
[321509231,1712266152250,-1393.8525815,0.00032958,3]
[321509238,1712266232145,-983.0,0.000305,2]
[321509239,1712266232156,-18.196,0.000314,4]
[321509240,1712266232169,-450.94697881,0.000314,4]
[321509241,1712266232178,-2682.20150744,0.000314,4]
[321509242,1712266232187,-3206.28076084,0.00032876,2]
[321509243,1712266232196,-2500.0,0.00032877,2]
[321509244,1712266232205,-200.0,0.00032958,2]
[321509245,1712266232214,-200.0,0.00033288,2]
[321509246,1712266232224,-151.0,0.00033376,7]
[321509247,1712266232233,-180.887195,0.00033425,14]
[321509248,1712266232242,-152.19,0.00033895,2]
[321509249,1712266232251,-250.0,0.00033961,115]
[321509250,1712266232260,-150.0,0.00033981,3]
[321509251,1712266232270,-4056.83,0.00033982,60]
[321509252,1712266232279,-8439.5221669,0.00034,15]
[321509253,1712266232288,-151.0,0.00034057,4]
[321509254,1712266232297,-180.887195,0.00034247,14]
[321509255,1712266232306,-200.0,0.00034322,2]
[321509256,1712266232315,-155.50470051,0.00034342,2]
[321509257,1712266232324,-150.0,0.00034347,2]
[321509258,1712266232333,-800.0,0.00034442,2]
[321509259,1712266232342,-150.0,0.000346,4]
[321509260,1712266232351,-150.0,0.00034628,2]
[321509261,1712266232360,-564.16,0.00034687,2]
[321509262,1712266232369,-151.0,0.00034752,2]
[321509263,1712266232378,-715.39755484,0.00035,7]